Cogmind - Beta 9.6 @@@ ROGUE MODE // 2020.07.25 @ 20:28:29 Player: aes256thetic Result: Destroyed by L-31 Rogue with Katana Performance ------------- Evolutions (1) 500 Regions Visited (2) 400 Robots Destroyed (21) 105 Value Destroyed (499) 499 Prototype IDs (1) 20 Alien Tech Used (0) 0 Bonus (0) 0 TOTAL SCORE: 1524 Bonus ------- None Cogmind --------- Core Integrity 0/400 Matter 226/300 Energy 100/100 System Corruption 2% Temperature Cool (0) Movement Core (300) Ox5 Location -9/Materials Parts ------- > --- POWER (1) -------- (None) > --- PROPULSION (2) --- (None) > --- UTILITY (2) ------ Large Storage Unit Improved Signal Interpreter > --- WEAPON (4) ------- (None) > --- INVENTORY (10) --- (None) Peak State ------------ > --- POWER ------------ Improved Ion Engine > --- PROPULSION ------- Aluminum Leg Aluminum Leg > --- UTILITY ---------- Sensor Array Improved Signal Interpreter > --- WEAPON ----------- EM Pulse Gun Improved EM Shotgun Beam Cannon Grenade Launcher > --- INVENTORY -------- Ion Engine Aluminum Leg Large Storage Unit EM Pulse Gun [Rating: 13] Favorites ----------- Power Ion Engine Engine Ion Engine Power Core Light Nuclear Core Propulsion Aluminum Leg Leg Aluminum Leg Wheel Compact Wheel Utility Heat Sink Device Heat Sink Storage Medium Storage Unit Processor Improved Signal Interpreter Weapon Assault Rifle Energy Gun EM Pulse Gun Energy Cannon Beam Cannon Ballistic Gun Assault Rifle Launcher Grenade Launcher Build | -11 -10 -9 ------- Run | Scr Mat Mat Slots Evolved 2 | . . 2 Power . | . . . Propulsion . | . . . Utility . | . . . Weapon 2 | . . 2 Parts Attached 32 | 6 10 16 Power 5 | 1 1 3 Engine 4 | 1 . 3 Core 1 | . 1 . Reactor . | . . . Propulsion 9 | 2 2 5 Treads . | . . . Leg 6 | . 2 4 Wheel 3 | 2 . 1 Hover . | . . . Flight . | . . . Utility 8 | 1 4 3 Device 2 | . 1 1 Storage 5 | 1 3 1 Processor 1 | . . 1 Hackware . | . . . Protection . | . . . Artifact . | . . . Weapon 10 | 2 3 5 Energy Gun 4 | . . 4 Energy Cannon 1 | . . 1 Ballistic Gun 3 | 2 1 . Ballistic Cannon . | . . . Launcher 2 | . 2 . Special Weapon . | . . . Impact Weapon . | . . . Slashing Weapon . | . . . Piercing Weapon . | . . . Special Melee Weapon . | . . . Unidentified Prototypes 1 | . . 1 Parts Lost 16 | . 3 13 Power 4 | . 1 3 Propulsion 5 | . 1 4 Utility 1 | . . 1 Weapon 6 | . 1 5 Highest Loss Streak 9 | . 2 9 Average Slot Usage (%) 88 | . 94 82 Engine 10 | . 12 7 Core 1 | . 1 1 Leg 13 | . 11 14 Wheel 8 | . 15 2 Device 9 | . 10 9 Storage 8 | . 14 4 Processor 3 | . . 5 Energy Gun 6 | . . 12 Energy Cannon 3 | . . 7 Ballistic Gun 15 | . 24 7 Launcher 5 | . 2 8 Naked Turns . | . . . Heaviest Build 24 | 12 19 24 Greatest Support 32 | 32 32 20 Greatest Overweight (x) 2 | . 1 2 Average Overweight (x) . | . . . Largest Inventory Capacity 10 | 6 10 10 Average Capacity 6 | 5 7 5 Most Carried 7 | 4 7 5 Average Carried 4 | 2 5 3 Final Capacity 10 | 6 8 10 Final Carried 5 | 4 5 . Class Distribution -------------------- 61% | Mutant 26% | Gunner 11% | Skirmisher Dominant Class ---------------- Mutant | -10/Materials Gunner | -9/Materials Resources | -11 -10 -9 ----------- Run | Scr Mat Mat Matter Collected 624 | 209 273 142 Remotely . | . . . Salvage Created 727 | . 306 421 Parts 37 | . 19 18 Haulers Intercepted 1 | . . 1 Recyclers Shooed 1 | . 1 . Parts Field Recycled . | . . . Retrieved Matter . | . . . Parts Self-Destructed . | . . . Prevented . | . . . Kills | -11 -10 -9 ------- Run | Scr Mat Mat Combat Hostiles Destroyed 13 | . 7 6 Guns 6 | . 4 2 Cannons 3 | . . 3 AOE 4 | . 3 1 Classes Destroyed 9 | . 5 4 Worker 3 | . . 3 Tunneler 1 | . 1 . Hauler 1 | . . 1 Recycler 2 | . 1 1 Watcher 1 | . 1 . Swarmer 3 | . 3 . Grunt 8 | . 4 4 Brawler 1 | . . 1 Sentry 1 | . . 1 Best Kill Streak 5 | . 4 5 Combat Bots Only 3 | . 3 2 Max Kills in Single Turn 3 | . 2 3 Gunslinging . | . . . Exploded 2 | . 2 1 Melee . | . . . Uniques/NPCs Destroyed . | . . . Combat | -11 -10 -9 -------- Run | Scr Mat Mat Damage Taken 1865 | . 623 1242 Core 601 | . 186 415 Absorbed by Shields . | . . . Core Remaining (%) 62 | 100 25 . Volleys Fired 63 | 1 39 23 Largest 3 | 2 2 3 Hottest 145 | 40 50 145 Shots Fired 141 | 2 77 62 Gun 116 | 2 71 43 Cannon 16 | . . 16 Launcher 9 | . 6 3 Special . | . . . Kinetic 87 | 2 71 14 Thermal 16 | . . 16 Explosive 9 | . 6 3 Electromagnetic 29 | . . 29 Robot Hit Streak 8 | 1 7 8 Robot Miss Streak 5 | 1 5 4 Penetration Max . | . . . Secondary Targets . | . . . Shots Hit Robots 75 | 1 35 39 Core Hits 46 | . 22 24 Critical Hits 1 | . . 1 Critical Kills . | . . . Critical Parts Destroyed 1 | . . 1 Melee Attacks . | . . . Impact . | . . . Slashing . | . . . Piercing . | . . . Sneak Attacks . | . . . Combat Hostiles . | . . . Follow-up Attacks . | . . . Damage Inflicted 2136 | 18 749 1369 Guns 775 | 18 379 378 Cannons 174 | . . 174 Explosions 1176 | . 368 808 Melee . | . . . Ramming 11 | . 2 9 Kinetic 463 | 18 379 66 Thermal 217 | . . 217 Explosive 1133 | . 368 765 Electromagnetic 312 | . . 312 Impact . | . . . Slashing . | . . . Piercing . | . . . Highest Corruption 2 | . . 2 Average Corruption 1 | . . 1 Corruption Purged . | . . . Overload Shots . | . . . Overflow Damage 129 | . 20 109 Projectiles . | . . . Explosions 129 | . 20 109 Melee . | . . . Knockbacks . | . . . Impact . | . . . Kinetic . | . . . Secondary . | . . . Self-Inflicted Damage 325 | . 108 217 Shots 8 | . 4 4 Rammed 8 | . . 8 Targets Rammed 9 | . 1 8 Kicked 1 | . 1 . Crushed . | . . . Highest Temperature 308 | . 9 308 Average Temperature 85 | . 8 95 Received Heat Transfer 645 | . 261 384 Siege Activations . | . . . Robots Corrupted . | . . . Combat Hostiles . | . . . Parts Fried 1 | . . 1 Impact Corruptions . | . . . Robots Melted . | . . . Combat Hostiles . | . . . Parts Melted . | . . . Heat Transferred 420 | . . 420 Parts Sabotaged . | . . . Parts Stolen . | . . . Parts Stripped . | . . . Power Chain Reactions 1 | . . 1 Missiles Intercepted . | . . . Alert | -11 -10 -9 ------- Run | Scr Mat Mat Peak Influence 328 | . 217 328 Average Influence 125 | . 75 186 Maximum Alert Level 1 | . 1 1 Low Security (%) 78 | 100 93 63 Level 1 21 | . 6 36 Level 2 . | . . . Level 3 . | . . . Level 4 . | . . . Level 5 . | . . . High Security . | . . . Max Security . | . . . Squads Dispatched 3 | . 1 2 Investigation 2 | . 1 1 Extermination . | . . . Reinforcement 1 | . . 1 Assault . | . . . Garrison . | . . . Intercept . | . . . Construction Impeded . | . . . Haulers Reinforced . | . . . Stealth | -11 -10 -9 --------- Run | Scr Mat Mat Distress Signals 1 | . 1 . Communications Jammed . | . . . Distress Signals . | . . . Times Spotted 27 | . 11 16 Peak Tracking Total 7 | . 3 7 Tactical Retreats 3 | . 1 2 Traps | -11 -10 -9 ------- Run | Scr Mat Mat Traps Triggered 1 | . . 1 Indirectly . | . . . Trap Hack Attempts . | . . . Triggered . | . . . Disarmed . | . . . Reprogrammed . | . . . Reused . | . . . Traps Extracted . | . . . Installed . | . . . Triggered . | . . . Machines | -11 -10 -9 ---------- Run | Scr Mat Mat Machines Disabled 5 | . 1 4 Max in Single Turn 2 | . 1 2 Machines Sabotaged . | . . . Garrisons Compromised . | . . . Overloaded Fab Kills . | . . . Fab Network Shutdowns . | . . . Hacking | -11 -10 -9 --------- Run | Scr Mat Mat Machines Accessed 2 | . 2 . Terminals 1 | . 1 . Fabricators . | . . . Repair Stations . | . . . Recycling Units 1 | . 1 . Scanalyzers . | . . . Garrison Access . | . . . Total Hacks 6 | . 6 . Successful 2 | . 2 . Failed 4 | . 4 . Catastrophic . | . . . Database Lockouts . | . . . Manual . | . . . Terminals 3 | . 3 . Fabricators . | . . . Repair Stations . | . . . Recycling Units 3 | . 3 . Scanalyzers . | . . . Garrison Access . | . . . Terminal Hacks . | . . . Fabricator Hacks . | . . . Repair Station Hacks . | . . . Recycling Unit Hacks 2 | . 2 . Retrieve Components 2 | . 2 . Scanalyzer . | . . . Garrison Access Hacks . | . . . Unauthorized Hacks . | . . . Terminals . | . . . Fabricators . | . . . Repair Stations . | . . . Recycling Units . | . . . Scanalyzers . | . . . Garrison Access . | . . . Data Cores Recovered . | . . . Used . | . . . Hacking Detections 2 | . 2 . Full Trace Events 1 | . 1 . Feedback Events . | . . . Feedback Blocked . | . . . Robot Schematics Acquired . | . . . Robots Built . | . . . Matter . | . . . Time . | . . . Total Robot Build Rating . | . . . Part Schematics Acquired . | . . . Parts Built . | . . . Matter . | . . . Time . | . . . Total Part Build Rating . | . . . Parts Repaired . | . . . Time . | . . . Parts Recycled . | . . . Recycled Matter . | . . . Retrieved Matter . | . . . Retrieved Components 1 | . 1 . Parts Scanalyzed . | . . . Part Schematics Acquired . | . . . Parts Damaged . | . . . Bothacking | -11 -10 -9 ------------ Run | Scr Mat Mat Used RIF Installer . | . . . Robots Hacked . | . . . Non-combat . | . . . Combat . | . . . Robot Hacks Applied . | . . . Relay Couplers Released . | . . . Robots Rewired . | . . . Allies Hacked . | . . . Hacks Repelled . | . . . Allies | -11 -10 -9 -------- Run | Scr Mat Mat Total Allies . | . . . Largest Group . | . . . Highest-Rated Group . | . . . Highest-Rated Ally . | . . . Total Orders . | . . . Ally Attacks . | . . . Total Damage . | . . . Kills . | . . . Allies Corrupted . | . . . Allies Melted . | . . . Intel | -11 -10 -9 ------- Run | Scr Mat Mat Robot Analysis Total . | . . . Derelict Logs Recovered . | . . . Drone Launches . | . . . Drone Recoveries . | . . . Exploration | -11 -10 -9 ------------- Run | Scr Mat Mat Turns Passed 785 | 58 331 396 Spaces Moved 414 | 44 173 197 Core 2 | 2 . . Treads . | . . . Legs 196 | . 66 130 Wheels 216 | 42 107 67 Hover . | . . . Flight . | . . . Fastest Speed 50 | 50 100 100 Average Speed 117 | 97 107 129 Slowest Speed 180 | 100 120 180 Overloaded Moves . | . . . Propulsion Burnouts . | . . . Robots Hopped . | . . . Cave-ins Triggered . | . . . Exploration Rate (%) 22 | 4 35 27 Regions Visited 2 Branch Regions . Pre-discovered Areas . | . . . Known Exits Taken . | . . . Unknown Exits Taken 2 | 1 1 . Scrap Searched . | . . . Spaces Dug . | . . . Terrain Destroyed 153 | . 68 85 Melee . | . . . Projectile . | . . . AOE 153 | . 68 85 Actions | -11 -10 -9 --------- Run | Scr Mat Mat Total 571 | 54 243 274 Wait 40 | . 19 21 Move 412 | 43 172 197 Hop . | . . . Pick Up 6 | 4 1 1 Fast Attach 14 | 6 2 6 Attach 10 | . 3 7 Detach 2 | . 1 1 Swap 8 | . 5 3 Drop 7 | . . 7 Fire 63 | 1 39 23 Melee . | . . . Ram 6 | . . 6 Kick 3 | . 1 2 Crush . | . . . Escape Stasis . | . . . Rewire . | . . . Trap . | . . . Miscellaneous . | . . . Route ------- -11/Scrapyard -10/Materials -9/Materials (discovered 1 exit: [*Min]) History --------- Turn | Location | Event 27 | -11/Scrapyard | Discovered new exit (range 15) 59 | -11/Scrapyard | Entered Materials 310 | -10/Materials | Build established: Mutant 328 | -10/Materials | Discovered new exit (range 8) 359 | -10/Materials | Core integrity fell below 50% 390 | -10/Materials | Entered another Materials area 390 | -9/Materials | Evolved 2 slots: Weapon x2 688 | -9/Materials | Discovered new exit (range 11) 775 | -9/Materials | Core integrity fell below 50% 782 | -9/Materials | Core integrity fell below 20% 786 | -9/Materials | Destroyed by L-31 Rogue with Katana Last Messages --------------- 00717_ Imp. Heat Sink fried. 00717_ G-47 Trooper destroyed. 00723_ Acquired 56 matter. 00723_ U-05 Engineer lays Concrete. 00730_ The unstable cave ceiling collapses. 00747_ EM Pulse Gun destroyed. 00753_ Beam Cannon destroyed. 00754_ Imp. EM Shotgun destroyed. 00755_ Imp. Ion Engine destroyed. 00757_ Aluminum Leg destroyed. 00758_ EM Pulse Gun destroyed. 00762_ Aluminum Leg destroyed. 00764_ Slammed into L-31 Rogue. 00766_ Destabilizing: System corrupted (+1). 00766_ Aluminum Leg destroyed. 00768_ Slammed into L-31 Rogue. 00771_ Ion Engine destroyed. 00771_ Slammed into L-31 Rogue. 00774_ Destabilizing: System corrupted (+1). 00777_ Slammed into L-31 Rogue. Map ----- +----------------------------------------------------+ | ????? ?????????????????????????????????????????? | | ???#?? ?????????????????????????????????????????? | | ???# ? ?????????????????????????????????????????? | | ???# ????????????????????????????????????????? | | ???? ""???????????????????????????????????????? | | ????? ""???????????????????????????????????????? | | ?????? ""???????????????????????????????????????? | | ??????? ??????########???????##????????????????? | | ########+####### #???? ? #???????????????? | | ??? " #???????????????? | | < ????? "T #???????????????? | | = ????????? #???????????????? | | # #/#### #???????????? ????????????????? | | # #????????????# #????????????????? | | # #????????????# #????????????????? | | # ##????????????# #????????????????? | | #= * # ########?????# #????????????????? | | # #[!= [ #????## ##???????????????? | | # #%[ ###### #???????????????? | | # +%][ # """ # #???????????????? | | #* #*= #= """ # #???????????????? | | # !# # """ # #???????????????? | | ##%### # # ## #???????????????? | | ##+### #####+## ####/#####?????????????? | | %[ ## ####### kg# gY #?????????????? | | + ^^ @/ g #?????????????? | | """ # #### ^ l# g #?????????????? | | """"" # #??##+####### #?????????????? | | "" " + +???????????# !!! #?????????????? | | # ##???????????# !! #?????????????? | | ######## #????????????# !! #?????????????? | | #????????????# #?????????????? | | ############ #????????????# #?????????????? | | ???????????# #????????????##+#######?????????????? | | ???????????# #???????????????????????????????????? | | ???????????# #???????????????????????????????????? | | ???????????# #???????????????????????????????????? | | ?????????###+#######?????????????????????????????? | | ?????????# !!! #?????????#???????????????????? | | ?????????# !!! #???????? #???????????????????? | | ?????????# """ !! #???????? #???????????????????? | | ?????????# """ #???????# #???????????????????? | | ?????????# """ [ #???????# #???????????????????? | | ?????????# #???????# #???????????????##### | | ?????????# #???????+ #??????????????## | | ?????????# #???????# #??????????????# | | ?????????#####+############# ##??########???# | | ????????????# #??# ! ##### | | ????????????# #??# [ + | | ????????????# #??# #### | +----------------------------------------------------+ Best States ------------- Heat Dissipation 38 Energy Generation 14 Energy Capacity 265 Matter Stores 300 Matter Capacity 300 Sight Range 16 Robot Scan Range 10 Terrain Scan Density 10 Evasion (%) 40 Item Schematics ----------------- None Robot Schematics ------------------ None Fabricated ------------ Nothing Alien Tech Used ----------------- None Achievements -------------- None Challenges ------------ None Game ------ Seed FlightHeartRail Manual? 0 Play Time 00:15:37 Cumulative 1.8 hours Start 2020.07.25 @ 20:15:33 End 2020.07.25 @ 20:28:29 Sessions 1 Manual Loads 0 Difficulty Rogue Special Mode None Game No. 5 Rogue 5 Adventurer 0 Explorer 0 Win Type - Total 0 Types 0/0/0/0/0/0/0 Lore% 9 Gallery% 8 Achievement% 7 Wizard Run 0 Options --------- ASCII 0 Keyboard 0 Movement Mouse Keybinds 0 Fullscreen 1 Font 24/Terminus Map View 130x56 Tactical HUD 1 Map Filters NONE Filters NONE Steam 1 RUN: 5990b762-7d98-4e54-a03a-7adc7e18358c